bitfinex-derivatives/quotes_BNBF0:USTF0_20250523
["timestamp","ask_amount","ask_price","bid_price","bid_amount"]
[1748035659855,1.12430979,663.31,662.74,1.4286041]
[1748035661459,1.09774373,663.3,662.74,1.4286041]
[1748035661656,1.12430979,663.31,662.74,1.4286041]
[1748035662654,1.12430979,663.26,662.72,1.4286041]
[1748035665857,1.12430979,663.3,662.52,1.4286041]
[1748035666054,1.09712145,663.29,662.52,1.4286041]
[1748035666253,1.09712145,663.28,662.52,1.4286041]
[1748035666454,1.09712145,663.27,662.52,1.4286041]
[1748035666656,1.09712145,663.26,662.52,1.4286041]
[1748035666856,1.12430979,663.3,662.52,1.4286041]
[1748035667057,1.09689994,663.29,662.52,1.4286041]
[1748035667258,1.09689994,663.28,662.52,1.4286041]
[1748035667460,1.09689994,663.27,662.52,1.4286041]
[1748035667660,1.12430979,663.3,662.52,1.4286041]
[1748035667863,1.0966614,663.29,662.52,1.4286041]
[1748035668161,1.12430979,663.3,662.52,1.4286041]
[1748035668456,1.47858075,663.46,662.51,1.4286041]
[1748035668660,1.12430979,663.47,662.51,1.4286041]
[1748035669261,1.12430979,663.47,662.52,0.30187767]
[1748035672059,0.26233759,664.2,663.15,1.07482399]
[1748035672060,1.12430979,663.8,663.15,1.07482399]
[1748035672265,1.09286445,663.79,663.15,1.07482399]
[1748035672561,1.09286445,663.78,663.15,1.07482399]
[1748035672760,1.09286445,663.77,663.15,1.07482399]
[1748035672960,1.09286445,663.76,663.15,1.07482399]
[1748035673156,1.12430979,663.8,663.15,1.07482399]
[1748035673358,1.09250065,663.79,663.15,1.07482399]
[1748035673558,1.09250065,663.78,663.15,1.07482399]
[1748035673757,1.09250065,663.77,663.15,1.07482399]
[1748035673960,1.12430979,663.8,663.15,1.07482399]
[1748035674160,1.09266153,663.79,663.15,1.07482399]
[1748035674366,1.09266153,663.78,663.15,1.07482399]
[1748035674662,1.12430979,663.8,663.15,1.07482399]
[1748035674860,1.09242404,663.79,663.15,1.07482399]
[1748035675062,1.09242404,663.78,663.15,1.07482399]
[1748035675260,1.12430979,663.83,663.13,1.07482399]
[1748035675557,1.09236663,663.82,663.13,1.07482399]
[1748035675758,1.09236663,663.81,663.13,1.07482399]
[1748035675962,1.09236663,663.8,663.13,1.07482399]
[1748035676159,1.09236663,663.79,663.13,1.07482399]
[1748035676464,1.12430979,663.83,663.13,1.07482399]
[1748035676661,1.09216821,663.82,663.13,1.07482399]
[1748035676864,1.09216821,663.81,663.13,1.07482399]
[1748035677063,1.09216821,663.8,663.13,1.07482399]
[1748035677260,1.09216821,663.79,663.13,1.07482399]
[1748035677481,1.12430979,663.83,663.13,1.07482399]
[1748035677664,1.09210147,663.82,663.13,1.07482399]
[1748035677865,1.09210147,663.81,663.13,1.07482399]
[1748035678064,1.09210147,663.8,663.13,1.07482399]
[1748035678263,1.12430979,663.83,663.13,1.07482399]
[1748035678460,1.09225274,663.82,663.12,1.07482399]
[1748035678663,1.09225274,663.81,663.12,1.07482399]
[1748035678865,1.09225274,663.8,663.12,1.07482399]
[1748035679066,1.12430979,663.83,663.12,1.07482399]
[1748035679271,1.09225378,663.82,663.12,1.07482399]
[1748035679568,1.09209905,663.81,663.12,1.07482399]
[1748035679763,1.09209905,663.8,663.12,1.07482399]
[1748035679968,1.12430979,663.83,663.12,1.07482399]
[1748035680169,1.09210038,663.82,663.12,1.07482399]
[1748035680370,1.09210038,663.81,663.12,1.07482399]
[1748035680570,1.12430979,663.83,663.12,1.07482399]
[1748035680772,1.09208629,663.82,663.12,1.07482399]
[1748035680965,1.09208629,663.81,663.12,1.07482399]
[1748035681168,1.09208619,663.8,663.12,1.07482399]
[1748035681368,1.12430979,663.83,663.12,1.07482399]
[1748035681665,1.09209399,663.82,663.12,1.07482399]
[1748035681867,1.09209399,663.81,663.12,1.07482399]
[1748035682065,1.12430979,663.83,663.12,1.07482399]
[1748035682371,2.21625459,663.82,663.14,1.07482399]
[1748035682572,1.09181034,663.81,663.14,1.07482399]
[1748035682772,1.12430979,663.82,663.14,1.07482399]
[1748035683072,1.09181034,663.81,663.14,1.07482399]
[1748035683371,1.12430979,663.82,663.14,1.07482399]
[1748035683571,1.09167122,663.81,663.14,1.07482399]
[1748035683886,1.12430979,663.82,663.14,1.07482399]
[1748035684072,1.0916699,663.81,663.14,1.07482399]
[1748035684265,1.12430979,663.82,663.14,1.07482399]
[1748035684468,1.09152912,663.81,663.14,1.07482399]
[1748035684666,1.12430979,663.82,663.14,1.07482399]
[1748035684971,1.09153237,663.81,663.14,1.07482399]
[1748035685171,1.12430979,663.82,663.14,1.07482399]
[1748035685672,1.12430979,663.84,663.12,1.07482399]
[1748035685970,1.09140944,663.83,663.12,1.07482399]
[1748035686171,1.09140944,663.82,663.12,1.07482399]
[1748035686372,1.12430979,663.84,663.12,1.07482399]
[1748035686572,1.09130409,663.83,663.12,1.07482399]
[1748035686766,1.09130409,663.82,663.12,1.07482399]
[1748035686966,1.12430979,663.84,663.12,1.07482399]
[1748035687166,1.09130286,663.83,663.12,1.07482399]
[1748035687371,1.09130286,663.82,663.12,1.07482399]
[1748035687571,1.12430979,663.84,663.12,1.07482399]
[1748035687768,1.0911865,663.83,663.12,1.07482399]
[1748035687973,1.0911865,663.82,663.12,1.07482399]
[1748035688169,1.12430979,663.84,663.12,1.07482399]
[1748035688374,1.09113269,663.83,663.12,1.07482399]
[1748035688674,1.09109321,663.82,663.12,1.07482399]
[1748035688875,1.12430979,663.84,663.12,1.07482399]
[1748035689068,1.09109321,663.83,663.12,1.07482399]
[1748035689274,1.09109321,663.82,663.12,1.07482399]
[1748035689472,1.12430979,663.84,663.12,1.07482399]
[1748035689672,1.09099778,663.83,663.12,1.07482399]
[1748035689874,1.09099778,663.82,663.1,1.07482399]
[1748035690072,1.12430979,663.86,663.1,1.07482399]
[1748035690374,1.09099998,663.85,663.1,1.07482399]
[1748035690573,1.09099998,663.84,663.1,1.07482399]
[1748035690775,1.09099998,663.83,663.1,1.07482399]
[1748035690970,1.09099998,663.82,663.1,1.07482399]
[1748035691174,1.09099998,663.81,663.1,1.07482399]
[1748035691373,1.09099998,663.8,663.1,1.07482399]
[1748035691577,1.09099998,663.79,663.1,1.07482399]
[1748035691778,1.09099998,663.78,663.1,1.07482399]
[1748035692073,1.09099998,663.77,663.1,1.07482399]
[1748035692277,1.12430979,663.86,663.1,1.07482399]
[1748035692477,1.56076821,663.85,663.1,1.07482399]
[1748035692680,1.56076821,663.84,662.96,1.07482399]
[1748035692876,1.09091797,663.83,662.96,1.07482399]
[1748035693073,1.09091797,663.82,662.96,1.07482399]
[1748035693276,1.09091797,663.81,662.96,1.07482399]
[1748035693479,1.09088765,663.8,662.96,1.07482399]
[1748035693675,1.09088765,663.79,662.96,1.07482399]
[1748035693872,1.09088765,663.78,662.96,1.07482399]
[1748035694075,1.09088765,663.77,662.96,1.07482399]
[1748035694278,1.12430979,663.89,662.96,1.07482399]
[1748035694477,1.56068652,663.88,662.96,1.07482399]
[1748035694675,1.56068652,663.87,662.96,1.07482399]
[1748035694876,1.56068652,663.86,662.96,1.07482399]
[1748035695080,1.56068652,663.85,662.96,1.07482399]
[1748035695380,1.56068652,663.84,662.96,1.07482399]
[1748035695582,1.09086093,663.83,662.96,1.07482399]
[1748035695783,1.09086093,663.82,662.96,1.07482399]
[1748035695977,1.09086093,663.81,662.96,1.07482399]
[1748035696176,1.09086093,663.8,662.96,1.07482399]
[1748035696379,1.09086093,663.79,662.96,1.07482399]
[1748035696579,1.09086093,663.78,662.96,1.07482399]
[1748035696781,1.09086093,663.77,662.96,1.07482399]
[1748035697076,1.12430979,663.89,662.96,1.07482399]
[1748035697280,1.5606211,663.88,662.96,1.07482399]
[1748035697482,1.5606211,663.87,662.96,1.07482399]
[1748035697781,1.5606211,663.86,662.96,1.07482399]
[1748035697981,1.12430979,663.89,662.96,1.07482399]
[1748035697982,1.5606211,663.85,662.96,1.07482399]
[1748035698182,1.09081529,663.84,662.96,1.07482399]
[1748035698381,1.09081529,663.83,662.96,1.07482399]
[1748035698575,1.12430979,663.89,662.96,1.07482399]
[1748035698576,1.09081529,663.82,662.96,1.07482399]
[1748035698782,1.09081529,663.81,662.96,1.07482399]
[1748035698982,1.09081529,663.8,662.96,1.07482399]
[1748035699184,1.09081529,663.79,662.96,1.07482399]
[1748035699382,1.09081529,663.78,662.96,1.07482399]
[1748035699577,1.12430979,663.89,662.96,1.07482399]
[1748035699779,1.56055421,663.88,662.96,1.07482399]
[1748035699981,1.56055421,663.87,662.96,1.07482399]
[1748035700281,1.56055421,663.86,662.96,1.07482399]
[1748035700476,1.56055421,663.85,662.96,1.07482399]
[1748035700680,1.09076863,663.84,662.96,1.07482399]
[1748035700880,1.09075595,663.83,662.96,1.07482399]
[1748035701081,1.09075595,663.82,662.96,1.07482399]
[1748035701282,1.09075595,663.81,662.96,1.07482399]
[1748035701477,1.09075595,663.8,662.96,1.07482399]
[1748035701680,1.09075595,663.79,662.96,1.07482399]
[1748035701878,1.09075595,663.78,662.96,1.07482399]
[1748035702082,1.12430979,663.89,662.96,1.07482399]
[1748035702279,1.56052249,663.88,662.96,1.07482399]
[1748035702483,1.56052249,663.87,662.96,1.07482399]
[1748035702684,1.56051585,663.86,662.96,1.07482399]
[1748035702878,1.12430979,663.84,663.01,1.07482399]
[1748035703079,1.09074179,663.83,663.01,1.07482399]
[1748035704886,1.12430979,663.82,662.99,1.07482399]
[1748035705086,1.09074179,663.81,662.99,1.07482399]
[1748035706400,0.46983132,663.8,662.99,1.07482399]
[1748035706686,1.09074179,663.79,662.99,1.07482399]
[1748035706987,1.09074179,663.78,662.99,1.07482399]
[1748035707280,1.09074179,663.77,662.99,1.07482399]
[1748035707485,1.09074179,663.76,662.98,1.07482399]
[1748035707986,1.12430979,663.77,662.98,1.07482399]
[1748035708180,1.09092101,663.76,662.98,1.07482399]
[1748035708380,1.09092101,663.75,662.98,1.07482399]
[1748035708584,1.09092101,663.74,662.98,1.07482399]
[1748035708784,1.09097101,663.73,662.98,1.07482399]
[1748035708982,1.09097101,663.72,662.98,1.07482399]
[1748035709283,1.12430979,663.77,662.98,1.07482399]
[1748035709485,1.09100323,663.76,662.98,1.07482399]
[1748035709787,1.09100323,663.75,662.96,1.07482399]
[1748035710086,1.09099113,663.74,662.96,1.07482399]
[1748035710285,1.09099113,663.73,662.96,1.07482399]
[1748035710479,1.12430979,663.79,662.96,1.07482399]
[1748035710681,1.09101833,663.78,662.96,1.07482399]
[1748035710881,1.09101833,663.77,662.96,1.07482399]
[1748035711084,1.09101833,663.76,662.96,1.07482399]
[1748035711284,1.09101833,663.75,662.96,1.07482399]
[1748035711481,1.09101833,663.74,662.96,1.07482399]
[1748035711682,1.09104552,663.73,662.96,1.07482399]
[1748035711880,1.12430979,663.79,662.96,1.07482399]
[1748035712085,1.09104518,663.78,662.96,1.07482399]
[1748035712285,1.09104518,663.77,662.96,1.07482399]
[1748035712487,1.12430979,663.79,662.96,1.07482399]
[1748035712689,1.09100737,663.78,662.96,1.07482399]
[1748035712887,1.12430979,663.88,662.98,1.07482399]
[1748035713096,1.56084665,663.87,662.98,1.07482399]
[1748035713386,1.56084665,663.86,662.98,1.07482399]
[1748035713586,1.56086393,663.85,662.98,1.07482399]
[1748035713785,1.09101005,663.84,662.98,1.07482399]
[1748035713986,1.09101005,663.83,662.98,1.07482399]
[1748035714287,1.09072264,663.82,662.98,1.07482399]
[1748035714484,1.09072264,663.81,662.98,1.07482399]
[1748035714686,1.09072264,663.8,662.98,1.07482399]
[1748035714886,1.09072264,663.79,662.98,1.07482399]
[1748035715088,1.09072264,663.78,662.98,1.07482399]
[1748035715388,1.09072264,663.78,662.52,0.30187767]
[1748035715389,1.12430979,663.89,662.99,1.07482399]
[1748035715588,1.55914941,663.88,662.99,1.07482399]
[1748035715888,1.55914941,663.87,662.99,1.07482399]
[1748035716086,1.55914941,663.86,662.99,1.07482399]
[1748035716386,1.55914941,663.85,662.99,1.07482399]
[1748035716587,1.09064042,663.84,662.99,1.07482399]
[1748035716789,1.09064042,663.83,662.99,1.07482399]
[1748035716991,1.09071915,663.82,662.99,1.07482399]
[1748035717290,1.09071915,663.81,662.99,1.07482399]
[1748035717590,1.09071915,663.8,662.99,1.07482399]
[1748035717788,1.09071915,663.79,662.99,1.07482399]
[1748035717989,1.09071915,663.78,662.99,1.07482399]
[1748035718287,1.12430979,663.89,662.99,1.07482399]
[1748035718487,2.68399552,663.88,663.01,1.07482399]
[1748035718687,1.55968573,663.87,663.01,1.07482399]
[1748035718886,1.55968573,663.86,663.01,1.07482399]
[1748035719085,1.559687,663.85,663.01,1.07482399]
[1748035719288,1.559687,663.84,663.01,1.07482399]
[1748035719515,1.09101702,663.83,663.01,1.07482399]
[1748035719784,1.09101702,663.82,663.01,1.07482399]
[1748035719984,1.09101702,663.81,663.01,1.07482399]
[1748035720284,1.12430979,663.88,663.01,1.07482399]
[1748035720486,1.09133445,663.87,663.01,1.07482399]
[1748035720705,1.09133445,663.86,663.01,1.07482399]
[1748035720890,1.09133445,663.85,663.01,1.07482399]
[1748035721090,1.09133445,663.84,663.01,1.07482399]
[1748035721284,1.09133445,663.83,663.01,1.07482399]
[1748035721483,1.09133445,663.82,663.01,1.07482399]
[1748035721689,1.09133445,663.81,663.01,1.07482399]
[1748035721886,1.12430979,663.88,663.01,1.07482399]
[1748035722087,1.5607081,663.87,663.08,1.07482399]
[1748035722290,1.56082568,663.86,663.08,1.07482399]
[1748035722589,1.09158981,663.85,663.08,1.07482399]
[1748035722790,1.09158981,663.84,663.08,1.07482399]
[1748035722990,1.09158981,663.83,663.08,1.07482399]
[1748035723189,1.09158981,663.82,663.08,1.07482399]
[1748035723388,1.09158981,663.81,663.08,1.07482399]
[1748035723589,1.09158981,663.8,663.08,1.07482399]
[1748035723789,1.09158981,663.79,663.08,1.07482399]
[1748035724024,1.12430979,663.91,663.08,1.07482399]
[1748035724293,1.56175113,663.9,663.08,1.07482399]
[1748035724494,1.56175113,663.89,663.09,1.07482399]
[1748035724789,1.56175113,663.88,663.09,1.07482399]
[1748035724990,1.56175113,663.87,663.09,1.07482399]
[1748035725189,1.56175113,663.86,663.09,1.07482399]
[1748035725489,1.56175113,663.85,663.09,1.07482399]
[1748035725693,1.56175113,663.84,663.09,1.07482399]
[1748035725893,1.56175113,663.83,663.09,1.07482399]
[1748035726093,1.56175113,663.82,663.09,1.07482399]
[1748035726292,0.47030428,663.81,663.09,1.07482399]
[1748035726497,1.56456104,663.8,663.09,1.07482399]
[1748035726693,1.09425067,663.79,663.09,1.07482399]
[1748035726895,1.09425067,663.78,663.09,1.07482399]
[1748035727094,1.09425067,663.77,663.09,1.07482399]
[1748035727295,1.56512152,663.76,663.09,1.07482399]
[1748035727495,1.09425067,663.75,663.09,1.07482399]
[1748035727696,1.09425067,663.74,663.09,1.07482399]
[1748035727898,1.09425067,663.73,663.09,1.07482399]
[1748035728097,1.09425067,663.72,663.09,1.07482399]
[1748035728299,1.09425067,663.71,663.2,1.07482399]
[1748035728500,1.09425067,663.7,663.2,1.07482399]
[1748035728696,1.09425067,663.69,663.2,1.07482399]
[1748035728895,1.09425067,663.68,663.2,1.07482399]
[1748035729098,1.12430979,663.79,663.2,1.07482399]
[1748035729293,1.56693165,663.78,663.2,1.07482399]
[1748035729493,1.56693165,663.77,663.2,1.07482399]
[1748035729694,1.56693165,663.76,663.2,1.07482399]
[1748035729895,1.56693165,663.75,663.2,1.07482399]
[1748035730099,1.09589475,663.74,663.2,1.07482399]
[1748035730295,1.09589475,663.73,663.2,1.07482399]
[1748035730500,1.09589475,663.72,663.2,1.07482399]
[1748035730711,1.12430979,663.79,663.2,1.07482399]
[1748035730712,1.09589475,663.71,663.2,1.07482399]
[1748035730897,1.09589475,663.7,663.2,1.07482399]
[1748035731096,1.09589475,663.69,663.2,1.07482399]
[1748035731300,1.09589475,663.68,663.2,1.07482399]
[1748035731500,1.12430979,663.77,663.21,1.07482399]
[1748035731702,1.56689125,663.76,663.21,1.07482399]
[1748035731906,1.56689125,663.75,663.21,1.07482399]
[1748035732103,1.09588033,663.74,663.21,1.07482399]
[1748035732298,1.09588033,663.73,663.21,1.07482399]
[1748035732498,1.09588033,663.72,663.21,1.07482399]
[1748035732696,1.09588033,663.71,663.21,1.07482399]
[1748035732906,1.09588033,663.7,663.21,1.07482399]
[1748035733198,1.09588033,663.69,663.21,1.07482399]
[1748035733403,1.09588033,663.68,663.21,1.07482399]
[1748035733704,1.12430979,663.77,663.21,1.07482399]
[1748035733901,1.56687992,663.76,663.21,1.07482399]
[1748035734101,1.56687992,663.75,663.21,1.07482399]
[1748035734309,1.09587236,663.74,663.21,1.07482399]
[1748035734503,1.09587236,663.73,663.21,1.07482399]
[1748035734700,1.09587236,663.72,663.21,1.07482399]
[1748035734899,1.09587236,663.71,663.21,1.07482399]
[1748035735099,1.09587236,663.7,663.21,1.07482399]
[1748035735402,1.09587236,663.69,663.23,1.07482399]
[1748035735602,1.09586484,663.68,663.23,1.07482399]
[1748035735803,1.12430979,663.75,663.23,1.07482399]
[1748035736007,1.09586351,663.74,663.23,1.07482399]
[1748035736206,1.09586351,663.73,663.23,1.07482399]
[1748035736406,1.09586351,663.72,663.23,1.07482399]
[1748035736607,1.09586351,663.71,663.23,1.07482399]
[1748035736810,1.09586351,663.7,663.23,1.07482399]
[1748035737004,1.09586351,663.69,663.23,1.07482399]
[1748035737207,1.12430979,663.75,663.23,1.07482399]
[1748035737406,1.09584382,663.74,663.23,1.07482399]
[1748035737606,1.09584382,663.73,663.23,1.07482399]
[1748035737806,1.09584382,663.72,663.23,1.07482399]
[1748035738008,1.09584382,663.71,663.23,1.07482399]
[1748035738205,1.09584382,663.7,663.23,1.07482399]
[1748035738405,1.09584382,663.69,663.23,1.07482399]
[1748035738608,1.12430979,663.75,663.23,1.07482399]
[1748035738807,1.09583666,663.74,663.23,1.07482399]
[1748035739009,1.09583666,663.73,663.23,1.07482399]
[1748035739210,1.09583666,663.72,663.23,1.07482399]
[1748035739411,1.09583666,663.71,663.22,1.07482399]
[1748035739611,1.09583666,663.7,663.22,1.07482399]
[1748035739812,1.09583666,663.69,663.22,1.07482399]
[1748035740113,1.12430979,663.77,663.22,1.07482399]
[1748035740312,1.56681587,663.76,663.22,1.07482399]
[1748035740513,1.56681587,663.75,663.22,1.07482399]
[1748035740712,1.09582784,663.74,663.22,1.07482399]
[1748035740913,1.09582784,663.73,663.22,1.07482399]
[1748035741113,1.09582784,663.72,663.22,1.07482399]
[1748035741412,1.09582784,663.71,663.22,1.07482399]
[1748035741613,1.09582784,663.7,663.22,1.07482399]
[1748035741807,1.09582784,663.69,663.22,1.07482399]
[1748035742008,1.12430979,663.75,663.24,1.07482399]
[1748035742210,1.09581948,663.74,663.24,1.07482399]
[1748035742407,1.09581948,663.73,663.24,1.07482399]
[1748035742609,1.09581948,663.72,663.24,1.07482399]
[1748035742812,1.09581948,663.71,663.24,1.07482399]
[1748035743015,1.09581948,663.7,663.24,1.07482399]
[1748035743210,1.09581948,663.69,663.24,1.07482399]
[1748035743407,1.12430979,663.75,663.24,1.07482399]
[1748035743612,1.09580965,663.74,663.24,1.07482399]
[1748035743809,1.09580965,663.73,663.24,1.07482399]
[1748035744010,1.09580965,663.72,663.24,1.07482399]
[1748035744214,1.09580965,663.71,663.24,1.07482399]
[1748035744410,1.09580965,663.7,663.22,1.07482399]
[1748035744612,1.09580965,663.69,663.22,1.07482399]
[1748035744815,1.12430979,663.76,663.22,1.07482399]
[1748035745038,1.56843015,663.75,663.22,1.07482399]
[1748035745311,1.09580269,663.74,663.22,1.07482399]
[1748035745509,1.09580269,663.73,663.22,1.07482399]
[1748035745813,1.09580269,663.72,663.22,1.07482399]
[1748035746014,1.09579822,663.71,663.22,1.07482399]
[1748035746213,1.09579822,663.7,663.22,1.07482399]
[1748035746410,1.09579822,663.69,663.22,1.07482399]
[1748035746607,1.12430979,663.76,663.22,1.07482399]
[1748035746809,1.56841462,663.75,663.22,1.07482399]
[1748035747014,1.09579171,663.74,663.22,1.07482399]
[1748035747218,1.09579171,663.73,663.22,1.07482399]
[1748035747516,1.56841671,663.72,663.22,1.07482399]
[1748035747816,1.56849674,663.71,663.21,1.07482399]
[1748035748016,1.56849674,663.7,663.21,1.07482399]
[1748035748217,1.0958801,663.69,663.21,1.07482399]
[1748035748417,1.568504,663.68,663.21,1.07482399]
[1748035748616,1.568504,663.67,663.21,1.07482399]
[1748035748916,1.568504,663.66,663.21,1.07482399]
[1748035749113,1.568504,663.65,663.21,1.07482399]
[1748035749313,1.568504,663.64,663.21,1.07482399]
[1748035749512,1.568504,663.63,663.21,1.07482399]
[1748035749716,1.0958801,663.62,663.21,1.07482399]
[1748035749918,1.0958801,663.61,663.21,1.07482399]
[1748035750118,1.0958801,663.6,663.21,1.07482399]
[1748035750418,1.0958801,663.59,663.21,1.07482399]
[1748035750619,1.0958801,663.58,663.21,1.07482399]
[1748035750919,1.0958801,663.57,663.09,1.07482399]
[1748035751114,1.0958801,663.56,663.09,1.07482399]
[1748035751322,1.0958801,663.55,663.09,1.07482399]
[1748035751525,1.12430979,663.6,663.09,1.07482399]
[1748035751724,1.09569127,663.59,663.09,1.07482399]
[1748035752023,1.09569127,663.58,663.09,1.07482399]
[1748035752322,1.09569127,663.57,663.09,1.07482399]
[1748035752519,1.09569127,663.56,663.09,1.07482399]
[1748035752724,1.09569127,663.55,663.09,1.07482399]
[1748035753016,1.09569127,663.54,663.09,1.07482399]
[1748035753219,1.12430979,663.6,663.09,1.07482399]
[1748035753421,1.09558752,663.59,663.09,1.07482399]
[1748035753624,1.09558752,663.58,663.09,1.07482399]
[1748035753924,1.09558752,663.57,663.04,1.07482399]
[1748035754125,1.09558752,663.56,663.04,1.07482399]
[1748035754327,1.09558752,663.55,663.04,1.07482399]
[1748035754526,1.09558752,663.54,663.04,1.07482399]
[1748035754726,1.12430979,663.63,663.04,1.07482399]
[1748035754927,1.5680174,663.62,663.04,1.07482399]
[1748035755127,1.5680174,663.61,663.04,1.07482399]
[1748035755329,1.5680174,663.6,663.04,1.07482399]
[1748035755524,1.09538109,663.59,663.04,1.07482399]
[1748035755721,1.09538109,663.58,663.04,1.07482399]
[1748035755926,1.09538109,663.57,663.04,1.07482399]
[1748035756128,1.09538109,663.56,663.04,1.07482399]
[1748035756331,1.09538109,663.55,663.0,1.07482399]
[1748035756523,1.09538109,663.54,663.0,1.07482399]
[1748035756726,1.12430979,663.61,663.0,1.07482399]
[1748035756924,1.56767002,663.6,663.0,1.07482399]
[1748035757129,1.09513758,663.59,663.0,1.07482399]
[1748035757327,1.09513758,663.58,663.0,1.07482399]
[1748035757623,1.09513758,663.57,663.0,1.07482399]
[1748035757823,1.09513758,663.56,663.0,1.07482399]
[1748035758028,1.09513758,663.55,663.0,1.07482399]
[1748035758227,1.09513758,663.54,663.0,1.07482399]
[1748035758528,1.12430979,663.61,663.0,1.07482399]
[1748035758728,1.56734015,663.6,663.0,1.07482399]
[1748035759027,1.09490659,663.59,663.0,1.07482399]
[1748035759229,1.12430979,663.61,663.0,1.07482399]
[1748035759230,1.09490659,663.58,663.0,1.07482399]
[1748035759527,1.09490659,663.57,663.0,1.07482399]
[1748035759725,1.09490659,663.56,663.0,1.07482399]
[1748035759926,1.09490659,663.55,662.98,1.07482399]
[1748035760227,1.09490659,663.54,662.98,1.07482399]
[1748035760522,1.12430979,663.62,662.98,1.07482399]
[1748035760727,1.56718153,663.61,662.98,1.07482399]
[1748035760926,1.09468761,663.6,662.98,1.07482399]
[1748035761129,1.09468761,663.59,662.98,1.07482399]
[1748035761329,1.09468761,663.58,662.98,1.07482399]
[1748035761529,1.09468761,663.57,662.98,1.07482399]
[1748035761726,1.09468761,663.56,662.98,1.07482399]
[1748035761925,1.09468761,663.55,662.98,1.07482399]
[1748035762124,1.12430979,663.62,662.98,1.07482399]
[1748035762327,1.56704734,663.61,662.98,1.07482399]
[1748035762527,1.09459382,663.6,662.98,1.07482399]
[1748035762730,1.09459382,663.59,662.98,1.07482399]
[1748035763031,1.09459382,663.58,662.98,1.07482399]
[1748035763337,1.09459382,663.57,662.99,1.07482399]
[1748035763528,1.09459382,663.56,662.99,1.07482399]
[1748035763730,1.09459382,663.55,662.99,1.07482399]
[1748035763931,1.09441047,663.54,662.99,1.07482399]
[1748035764235,1.09444461,663.53,662.99,1.07482399]
[1748035764430,1.12430979,663.61,662.99,1.07482399]
[1748035764627,1.56679622,663.6,662.99,1.07482399]
[1748035764831,1.56679622,663.59,662.99,1.07482399]
[1748035765134,1.56679622,663.58,662.99,1.07482399]
[1748035765333,1.09441585,663.57,662.99,1.07482399]
[1748035765632,1.09441585,663.56,662.99,1.07482399]
[1748035765828,1.09420559,663.55,662.97,1.07482399]
[1748035766026,1.09420559,663.54,662.97,1.07482399]
[1748035766232,1.09420559,663.53,662.97,1.07482399]
[1748035766529,1.12430979,663.56,662.97,1.07482399]
[1748035766726,1.09408509,663.55,662.97,1.07482399]
[1748035766932,1.09408509,663.54,662.97,1.07482399]
[1748035767131,1.09408509,663.53,662.97,1.07482399]
[1748035767332,1.12430979,663.56,662.97,1.07482399]
[1748035767530,1.09406808,663.55,662.97,1.07482399]
[1748035767731,1.09399072,663.54,662.97,1.07482399]
[1748035767931,1.09399072,663.53,662.97,1.07482399]
[1748035768132,1.12430979,663.56,662.97,1.07482399]
[1748035768346,1.09399205,663.55,662.97,1.07482399]
[1748035768538,1.09399205,663.54,662.97,1.07482399]
[1748035768738,1.12430979,663.56,662.97,1.07482399]
[1748035768939,1.09388989,663.55,662.97,1.07482399]
[1748035769237,1.09388989,663.54,662.98,1.07482399]
[1748035769467,1.09386704,663.53,662.98,1.07482399]
[1748035769636,1.12430979,663.56,662.98,1.07482399]
[1748035769837,1.09379517,663.55,662.98,1.07482399]
[1748035770035,1.09379517,663.54,662.98,1.07482399]
[1748035770234,1.12430979,663.56,662.98,1.07482399]
[1748035770437,1.09375395,663.55,662.98,1.07482399]
[1748035770634,1.09375395,663.54,662.98,1.07482399]
[1748035770939,1.12430979,663.56,662.98,1.07482399]
[1748035771139,1.09369158,663.55,662.98,1.07482399]
[1748035771332,1.12430979,663.56,662.98,1.07482399]
[1748035771538,1.09365851,663.55,662.98,1.07482399]
[1748035771742,1.12430979,663.56,662.98,1.07482399]
[1748035772040,1.09359999,663.55,662.98,1.07482399]
[1748035772240,1.12430979,663.56,662.98,1.07482399]
[1748035772440,1.09357242,663.55,662.98,1.07482399]
[1748035772641,1.09357242,663.54,662.98,1.07482399]
[1748035772941,1.12430979,663.56,662.98,1.07482399]
[1748035773141,1.09351318,663.55,662.98,1.07482399]
[1748035773336,1.09351318,663.54,662.98,1.07482399]
[1748035773536,1.12430979,663.56,662.98,1.07482399]
[1748035773740,1.09342677,663.55,662.98,1.07482399]
[1748035773940,1.12430979,663.56,662.98,1.07482399]
[1748035774139,1.09342824,663.55,662.98,1.07482399]
[1748035774337,1.12430979,663.56,662.98,1.07482399]
[1748035774540,1.0933561,663.55,662.98,1.07482399]
[1748035774741,1.12430979,663.56,662.98,1.07482399]
[1748035775040,1.0933561,663.55,662.98,1.07482399]
[1748035775241,1.12430979,663.57,662.97,1.07482399]
[1748035775444,1.09332255,663.56,662.97,1.07482399]
[1748035775742,1.12430979,663.57,662.97,1.07482399]
[1748035776043,1.09328388,663.56,662.97,1.07482399]
[1748035776237,1.12430979,663.57,662.97,1.07482399]
[1748035776437,1.09325266,663.56,662.97,1.07482399]
[1748035776643,1.12430979,663.57,662.97,1.07482399]
[1748035776842,1.09322765,663.56,662.97,1.07482399]
[1748035777142,1.12430979,663.57,662.97,1.07482399]
[1748035777345,1.09322632,663.56,662.97,1.07482399]
[1748035777543,1.12430979,663.57,662.97,1.07482399]
[1748035777743,1.09317569,663.56,662.97,1.07482399]